bitfinex/quotes_SOLUSD_20250611
["timestamp","ask_amount","ask_price","bid_price","bid_amount"]
[1749683928227,25.68,160.63,160.58,13.68317022]
[1749683928729,39.36317022,160.63,160.58,13.68317022]
[1749683931230,39.36317022,160.63,160.57,18.64964886]
[1749683931527,39.36317022,160.63,160.58,13.68317022]
[1749683931528,13.68317022,160.61,160.58,13.68317022]
[1749683931722,13.68317022,160.62,160.58,13.68317022]
[1749683931925,39.36317022,160.63,160.58,13.68317022]
[1749683932108,39.36317022,160.63,160.59,13.68317022]
[1749683932433,25.68,160.63,160.59,13.68317022]
[1749683932624,6.4503,160.64,160.6,13.68317022]
[1749683932831,45.81347022,160.64,160.6,13.68317022]
[1749683933417,13.68317022,160.63,160.59,13.68317022]
[1749683934237,45.81347022,160.64,160.59,13.68317022]
[1749683934536,32.1303,160.64,160.59,13.68317022]
[1749683934837,45.81347022,160.64,160.59,13.68317022]
[1749683935734,45.81347022,160.64,160.57,18.79181043]
[1749683935930,45.81347022,160.64,160.59,13.68317022]
[1749683936929,39.68317022,160.65,160.6,13.68317022]
[1749683937115,25.68,160.64,160.6,13.68317022]
[1749683938041,39.36317022,160.64,160.59,13.68317022]
[1749683938346,13.68317022,160.64,160.6,5.6]
[1749683938638,44.01367886,160.64,160.6,5.6]
[1749683938841,39.36317022,160.64,160.6,5.6]
[1749683940542,13.68317022,160.62,160.6,5.6]
[1749683940916,13.68317022,160.61,160.6,5.6]
[1749683942057,39.36317022,160.61,160.6,5.6]
[1749683942821,39.64749336,160.61,160.6,5.6]
[1749683943038,52.85147211,160.61,160.6,5.6]
[1749683943239,43.81885025,160.61,160.6,5.6]
[1749683943465,43.81906456,160.61,160.6,5.6]
[1749683943646,39.16725593,160.61,160.6,5.6]
[1749683943846,57.50270172,160.61,160.6,5.6]
[1749683944159,57.50272581,160.61,160.6,5.6]
[1749683944530,83.50272581,160.61,160.6,5.6]
[1749683944866,6.5964,160.63,160.6,5.6]
[1749683944867,13.68317022,160.63,160.6,5.6]
[1749683945157,39.36317022,160.63,160.6,5.6]
[1749683945867,25.68,160.62,160.6,5.6]
[1749683947939,39.36317022,160.63,160.6,5.6]
[1749683949028,13.68317022,160.63,160.6,5.6]
[1749683949235,188.46317022,160.64,160.6,5.6]
[1749683949828,13.68317022,160.63,160.6,5.6]
[1749683950257,174.78,160.64,160.6,5.6]
[1749683950438,174.78,160.64,160.6,19.28317022]
[1749683950648,188.46317022,160.64,160.6,19.28317022]
[1749683951546,174.78,160.64,160.6,19.28317022]
[1749683951748,188.46317022,160.64,160.6,19.28317022]
[1749683952349,174.78,160.64,160.6,19.28317022]
[1749683952557,188.46317022,160.64,160.6,19.28317022]
[1749683953167,39.36317022,160.64,160.6,19.28317022]
[1749683954052,25.68,160.64,160.6,19.28317022]
[1749683954553,39.36317022,160.64,160.6,19.28317022]
[1749683954766,13.68317022,160.64,160.6,19.28317022]
[1749683954959,39.36317022,160.64,160.6,5.6]
[1749683955470,25.68,160.64,160.6,19.28317022]
[1749683955846,39.36317022,160.64,160.6,19.28317022]
[1749683956853,39.36317022,160.64,160.6,5.6]
[1749683957049,13.68317022,160.63,160.6,5.6]
[1749683958882,39.36317022,160.64,160.6,5.6]
[1749683960891,13.68317022,160.63,160.6,5.6]
[1749683962166,13.68317022,160.61,160.56,5.6]
[1749683962371,13.68317022,160.58,160.56,5.6]
[1749683962897,39.36317022,160.6,160.56,5.6]
[1749683963684,25.68,160.6,160.56,19.28317022]
[1749683963999,13.68317022,160.61,160.56,19.28317022]
[1749683965501,25.68,160.62,160.57,13.68317022]
[1749683965690,18.34711696,160.61,160.56,19.28317022]
[1749683965869,13.68317022,160.61,160.56,19.28317022]
[1749683966830,25.68,160.62,160.56,19.28317022]
[1749683967034,18.34719432,160.61,160.56,19.28317022]
[1749683967215,13.68317022,160.61,160.56,19.28317022]
[1749683967538,4.66433872,160.6,160.56,19.28317022]
[1749683967704,13.68317022,160.61,160.56,19.28317022]
[1749683969228,25.68,160.62,160.56,19.28317022]
[1749683969429,13.68317022,160.59,160.56,5.6]
[1749683969619,13.68317022,160.6,160.56,5.6]
[1749683970227,25.68,160.62,160.56,5.6]
[1749683970428,13.68317022,160.6,160.56,5.6]
[1749683970911,25.68,160.62,160.56,5.6]
[1749683971109,18.34760481,160.61,160.56,19.28317022]
[1749683971309,13.68317022,160.61,160.56,19.28317022]
[1749683971508,4.66423604,160.6,160.56,19.28317022]
[1749683971827,13.68317022,160.61,160.56,19.28317022]
[1749683972208,25.68,160.62,160.56,19.28317022]
[1749683972433,18.34732605,160.61,160.56,19.28317022]
[1749683972722,13.68317022,160.61,160.56,19.28317022]
[1749683973726,4.6643825,160.6,160.56,19.28317022]
[1749683973943,13.68317022,160.61,160.56,19.28317022]
[1749683974235,4.66439459,160.6,160.58,13.68317022]
[1749683974454,39.68317022,160.64,160.58,13.68317022]
[1749683974727,39.68317022,160.64,160.59,5.6]
[1749683974931,18.34706027,160.63,160.59,5.6]
[1749683975228,4.66386679,160.62,160.59,5.6]
[1749683975401,13.68317022,160.63,160.59,5.6]
[1749683975820,4.66391509,160.62,160.59,5.6]
[1749683976020,13.68317022,160.63,160.59,5.6]
[1749683976217,4.66387443,160.62,160.59,5.6]
[1749683976418,13.68317022,160.63,160.59,5.6]
[1749683976623,4.66386679,160.62,160.59,5.6]
[1749683976808,13.68317022,160.63,160.59,5.6]
[1749683977005,18.34730218,160.62,160.59,5.6]
[1749683977210,51.68,160.64,160.59,5.6]
[1749683977211,13.68317022,160.6,160.59,5.6]
[1749683977411,18.34730218,160.6,160.59,5.6]
[1749683977849,18.34807732,160.6,160.59,5.6]
[1749683978145,13.68317022,160.6,160.59,5.6]
[1749683978324,18.34813515,160.6,160.59,5.6]
[1749683978508,13.68317022,160.6,160.59,5.6]
[1749683978708,25.68,160.61,160.59,5.6]
[1749683978938,18.33890538,160.6,160.59,5.6]
[1749683979235,18.33891378,160.6,160.59,5.6]
[1749683979532,13.68317022,160.6,160.59,5.6]
[1749683979919,18.33898413,160.6,160.59,5.6]
[1749683980111,18.33889927,160.6,160.59,5.6]
[1749683980317,4.65572905,160.6,160.59,5.6]
[1749683980528,25.68,160.61,160.59,5.6]
[1749683980736,39.36317022,160.61,160.59,5.6]
[1749683981036,4.65563173,160.6,160.59,5.6]
[1749683981240,4.65563375,160.6,160.59,5.6]
[1749683981842,25.68,160.62,160.59,5.6]
[1749683982026,18.33878861,160.61,160.59,5.6]
[1749683982227,13.68317022,160.61,160.59,5.6]
[1749683983336,32.50959228,160.64,160.59,5.6]
[1749683983543,13.68317022,160.61,160.59,5.6]
[1749683984334,4.6556567,160.6,160.59,5.6]
[1749683984531,4.65565735,160.6,160.59,5.6]
[1749683984945,25.68,160.62,160.59,5.6]
[1749683985251,39.36317022,160.62,160.59,5.6]
[1749683986532,13.68317022,160.62,160.59,5.6]
[1749683987031,26.0,160.64,160.59,19.28317022]
[1749683987032,65.36317022,160.64,160.59,19.28317022]
[1749683987538,150.6259,160.66,160.59,19.28317022]
[1749683987539,39.36317022,160.65,160.59,19.28317022]
[1749683988053,4.65465293,160.64,160.59,19.28317022]
[1749683988230,13.68317022,160.63,160.59,5.6]
[1749683988748,18.33788645,160.63,160.59,5.6]
[1749683988951,13.68317022,160.63,160.59,5.6]
[1749683989334,18.33786236,160.63,160.59,5.6]
[1749683989651,13.68317022,160.63,160.59,5.6]
[1749683991546,13.68317022,160.62,160.59,5.6]
[1749683991850,13.68317022,160.63,160.59,5.6]
[1749683992651,13.68317022,160.63,160.59,19.28317022]
[1749683992831,156.85037892,160.66,160.6,13.68317022]
[1749683992832,39.34317022,160.65,160.6,13.68317022]
[1749683993027,4.65349424,160.64,160.61,13.68317022]
[1749683993261,4.65322289,160.65,160.61,13.68317022]
[1749683993419,188.44317022,160.66,160.6,13.68317022]
[1749683993420,174.76,160.66,160.6,13.68317022]
[1749683993760,13.68317022,160.65,160.6,13.68317022]
[1749683994661,13.68317022,160.64,160.59,5.6]
[1749683994862,13.68317022,160.64,160.59,19.28317022]
[1749683995149,13.68317022,160.62,160.59,5.6]
[1749683995449,13.68317022,160.63,160.59,5.6]
[1749683995651,13.68317022,160.63,160.59,19.28317022]
[1749683996266,4.65304026,160.65,160.59,19.28317022]
[1749683996585,13.68317022,160.65,160.6,13.68317022]
[1749683997175,13.68317022,160.65,160.61,13.68317022]
[1749683997678,13.68317022,160.63,160.59,5.6]
[1749683997882,13.68317022,160.64,160.59,19.28317022]
[1749684000666,39.34317022,160.65,160.6,13.68317022]
[1749684001163,13.68317022,160.64,160.59,19.28317022]
[1749684001364,13.68317022,160.64,160.59,5.6]
[1749684001663,13.68317022,160.64,160.59,19.28317022]
[1749684002576,39.34317022,160.65,160.6,13.68317022]
[1749684003078,39.34317022,160.65,160.59,5.6]
[1749684003079,13.68317022,160.64,160.59,19.28317022]
[1749684005791,13.68317022,160.63,160.59,5.6]
[1749684006090,13.68317022,160.62,160.59,5.6]
[1749684006495,10.87847545,160.65,160.59,5.6]
[1749684006671,13.68317022,160.62,160.59,5.6]
[1749684007398,13.68317022,160.62,160.57,1.5172]
[1749684007399,13.68317022,160.6,160.53,0.14216157]
[1749684007582,13.68317022,160.58,160.54,5.6]
[1749684008099,13.68317022,160.59,160.54,19.28317022]
[1749684009196,13.68317022,160.58,160.54,5.6]
[1749684009394,10.88152972,160.61,160.54,5.6]
[1749684009597,13.68317022,160.58,160.54,5.6]
[1749684010976,13.68317022,160.6,160.54,5.6]
[1749684011211,13.68317022,160.6,160.55,13.68317022]
[1749684013500,13.68317022,160.59,160.54,19.28317022]
[1749684014099,31.88601623,160.62,160.54,19.28317022]
[1749684014289,13.68317022,160.59,160.54,19.28317022]
[1749684015005,13.68317022,160.59,160.54,5.6]
[1749684015200,13.68317022,160.59,160.54,19.28317022]
[1749684015505,13.68317022,160.59,160.55,13.68317022]
[1749684016907,13.68317022,160.57,160.54,5.6]
[1749684017207,13.68317022,160.55,160.54,5.6]
[1749684017790,19.80547022,160.55,160.48,5.6]
[1749684017993,13.68317022,160.52,160.48,5.6]
[1749684020828,13.68317022,160.54,160.49,32.33281908]
[1749684022125,13.68317022,160.54,160.49,18.64964886]
[1749684022328,13.68317022,160.54,160.49,32.33281908]
[1749684023213,13.68317022,160.54,160.5,13.68317022]
[1749684024630,13.68317022,160.54,160.49,32.33281908]
[1749684025120,13.68317022,160.53,160.48,19.28317022]
[1749684025328,13.68317022,160.52,160.48,19.28317022]
[1749684025831,13.68317022,160.52,160.48,5.6]
[1749684026128,13.68317022,160.51,160.48,5.6]
[1749684026331,13.68317022,160.52,160.48,5.6]
[1749684027617,13.68317022,160.51,160.48,5.6]
[1749684028140,26.0,160.53,160.48,5.6]
[1749684028433,13.68317022,160.52,160.48,5.6]
[1749684029043,13.68317022,160.52,160.48,19.28317022]
[1749684030113,32.22864511,160.55,160.48,19.28317022]
[1749684030631,13.68317022,160.53,160.48,19.28317022]
[1749684030835,13.68317022,160.52,160.48,19.28317022]
[1749684031635,13.68317022,160.52,160.48,5.6]
[1749684031938,13.68317022,160.52,160.48,19.28317022]
[1749684032813,32.22859099,160.55,160.48,19.28317022]
[1749684033012,13.68317022,160.52,160.48,19.28317022]
[1749684033711,13.68317022,160.51,160.48,5.6]
[1749684033916,13.68317022,160.52,160.48,5.6]
[1749684034138,32.22860357,160.55,160.48,19.28317022]
[1749684034433,13.68317022,160.52,160.48,19.28317022]
[1749684035346,13.68317022,160.52,160.48,5.6]
[1749684035523,13.68317022,160.52,160.48,19.28317022]
[1749684036328,26.0,160.55,160.48,19.28317022]
[1749684036529,13.68317022,160.52,160.48,19.28317022]
[1749684036940,13.68317022,160.52,160.48,5.6]
[1749684037145,13.68317022,160.52,160.48,19.28317022]
[1749684038029,13.68317022,160.52,160.48,5.6]
[1749684039548,13.68317022,160.52,160.48,19.28317022]
[1749684040141,32.22858937,160.55,160.48,19.28317022]
[1749684040343,13.68317022,160.52,160.48,19.28317022]
[1749684040850,26.0,160.55,160.48,19.28317022]
[1749684041144,13.68317022,160.53,160.48,19.28317022]
[1749684041366,26.0,160.55,160.49,13.68317022]
[1749684041664,13.68317022,160.53,160.48,19.28317022]
[1749684043468,26.0,160.55,160.48,19.28317022]
[1749684043653,13.68317022,160.53,160.48,19.28317022]
[1749684044844,26.0,160.55,160.48,19.28317022]
[1749684045043,13.68317022,160.53,160.48,19.28317022]
[1749684045845,149.1,160.57,160.52,13.68317022]
[1749684046046,149.1,160.57,160.54,13.68317022]
[1749684046474,149.1,160.57,160.55,13.68317022]
[1749684048276,149.1,160.57,160.49,8.9234043]
[1749684048476,149.1,160.57,160.51,13.68317022]
[1749684048477,13.68317022,160.56,160.51,13.68317022]
[1749684048657,149.1,160.57,160.54,13.68317022]
[1749684049191,149.1,160.57,160.55,13.68317022]
[1749684049665,149.1,160.57,160.55,19.28317022]
[1749684050673,149.1,160.57,160.55,5.6]
[1749684050882,39.34317022,160.59,160.55,5.6]
[1749684051578,13.68317022,160.58,160.55,5.6]
[1749684052513,25.66,160.58,160.55,5.6]
[1749684053566,13.68317022,160.59,160.55,5.6]
[1749684053799,149.1,160.63,160.55,5.6]
[1749684053800,6.3999,160.7,160.59,18.79181043]
[1749684053982,13.68317022,160.65,160.6,19.26317022]
[1749684054184,13.68317022,160.65,160.6,13.68317022]
[1749684054383,12.62273696,160.7,160.59,18.64964886]
[1749684054384,13.68317022,160.64,160.61,5.58]
[1749684055278,13.68317022,160.65,160.61,5.58]
[1749684058916,0.28432314,160.67,160.61,5.58]
[1749684059120,13.68317022,160.65,160.61,5.58]
[1749684061608,13.68317022,160.65,160.61,19.26317022]
[1749684062395,13.68317022,160.65,160.61,5.58]
[1749684063414,13.68317022,160.65,160.61,19.26317022]
[1749684063622,0.28432314,160.67,160.57,18.64964886]
[1749684063623,13.68317022,160.63,160.57,18.64964886]
[1749684063827,13.68317022,160.62,160.6,5.58]
[1749684064049,13.68317022,160.63,160.6,5.58]
[1749684064525,26.0,160.64,160.6,5.58]
[1749684064705,13.68317022,160.63,160.6,5.58]
[1749684064905,13.68317022,160.66,160.6,5.58]
[1749684065100,13.68317022,160.66,160.61,13.68317022]
[1749684066105,0.28432314,160.67,160.61,13.68317022]
[1749684066304,13.68317022,160.66,160.61,13.68317022]
[1749684067133,13.68317022,160.66,160.6,5.58]
[1749684067134,0.28432314,160.67,160.63,13.68317022]
[1749684067409,26.14216157,160.68,160.62,13.68317022]
[1749684067410,26.0,160.68,160.62,13.68317022]
[1749684067619,13.68317022,160.67,160.62,13.68317022]
[1749684068215,26.0,160.68,160.62,13.68317022]
[1749684068523,13.68317022,160.67,160.62,13.68317022]
[1749684070342,26.0,160.68,160.62,13.68317022]
[1749684070507,13.68317022,160.67,160.62,13.68317022]
[1749684073037,26.0,160.68,160.62,13.68317022]
[1749684073347,13.68317022,160.67,160.63,13.68317022]
[1749684073644,13.68317022,160.67,160.62,13.68317022]
[1749684075338,13.68317022,160.66,160.6,5.58]
[1749684075518,13.68317022,160.66,160.62,13.68317022]
[1749684076039,26.0,160.68,160.62,13.68317022]
[1749684076338,13.68317022,160.67,160.62,13.68317022]
[1749684076640,155.60761264,160.69,160.6,5.58]
[1749684076641,149.1,160.69,160.65,13.68317022]
[1749684077052,149.1,160.69,160.66,13.68317022]
[1749684078045,162.78317022,160.69,160.61,18.64964886]
[1749684078356,162.78317022,160.69,160.65,13.68317022]
[1749684078737,149.1,160.69,160.65,13.68317022]
[1749684079663,27.6515,160.71,160.62,1.6085]
[1749684079664,26.0,160.71,160.68,13.68317022]
[1749684079825,13.68317022,160.73,160.68,13.68317022]
[1749684080027,13.68317022,160.72,160.69,5.58]
[1749684082755,181.43262314,160.74,160.69,19.26317022]
[1749684082756,175.1,160.74,160.69,19.26317022]
[1749684082956,188.78317022,160.74,160.7,13.68317022]
[1749684083534,149.1,160.74,160.71,13.68317022]
[1749684083834,16.17090031,160.77,160.72,13.68317022]
[1749684084042,41.81090031,160.77,160.73,13.68317022]
[1749684084232,2.48773009,160.77,160.73,13.68317022]
[1749684084442,2.48773009,160.77,160.74,13.68317022]
[1749684084641,2.48773009,160.77,160.73,13.68317022]
[1749684085151,2.48773009,160.77,160.74,13.68317022]
[1749684085452,2.48773009,160.77,160.73,13.68317022]
[1749684086770,2.48773009,160.77,160.7,18.64964886]
[1749684086969,2.48773009,160.77,160.73,13.68317022]
[1749684087653,2.48773009,160.77,160.7,18.64964886]
[1749684087855,2.48773009,160.77,160.73,13.68317022]
[1749684089165,2.48773009,160.77,160.74,13.68317022]
[1749684093384,2.48773009,160.77,160.75,13.68317022]
[1749684093745,2.48773009,160.77,160.74,13.68317022]
[1749684096179,13.68317022,160.75,160.71,5.58]
[1749684096382,13.68317022,160.73,160.71,5.58]
[1749684096576,13.68317022,160.74,160.71,5.58]
[1749684097885,32.0729,160.76,160.71,5.58]
[1749684098079,13.68317022,160.75,160.71,5.58]
[1749684099090,13.68317022,160.74,160.71,5.58]
[1749684103564,32.0729,160.76,160.71,5.58]
[1749684103766,13.68317022,160.75,160.71,5.58]
[1749684104380,32.0729,160.76,160.71,5.58]
[1749684104381,13.68317022,160.74,160.71,5.58]
[1749684104589,13.68317022,160.72,160.7,5.58]
[1749684104884,25.62,160.74,160.7,5.58]
[1749684104885,13.68317022,160.71,160.7,5.58]
[1749684106684,13.68317022,160.72,160.7,5.58]
[1749684106985,25.62,160.74,160.7,5.58]
[1749684107294,13.68317022,160.74,160.7,5.58]
[1749684107669,25.62,160.75,160.7,5.58]
[1749684107670,13.68317022,160.73,160.7,5.58]
[1749684109093,25.62,160.75,160.7,5.58]
[1749684109402,13.68317022,160.74,160.7,5.58]
[1749684109896,32.0729,160.76,160.7,19.26317022]
[1749684110070,13.68317022,160.74,160.7,19.26317022]
[1749684110577,13.68317022,160.74,160.7,5.58]
[1749684113893,32.0729,160.76,160.7,5.58]
[1749684114192,13.68317022,160.74,160.7,5.58]
[1749684114400,4.65639698,160.73,160.7,5.58]
[1749684114586,4.65639698,160.72,160.7,19.26317022]
[1749684114897,13.68317022,160.75,160.7,19.26317022]
[1749684115095,4.65632013,160.74,160.7,19.26317022]
[1749684115296,4.65631881,160.73,160.7,19.26317022]
[1749684115597,13.68317022,160.75,160.7,19.26317022]
[1749684115987,4.65634225,160.74,160.7,19.26317022]
[1749684116194,4.65634291,160.73,160.7,19.26317022]
[1749684116406,13.68317022,160.75,160.7,19.26317022]
[1749684116617,4.65685965,160.74,160.7,19.26317022]
[1749684116795,4.65683681,160.73,160.7,19.26317022]
[1749684116990,13.68317022,160.75,160.7,19.26317022]
[1749684117192,4.656851,160.74,160.7,19.26317022]
[1749684117393,4.656851,160.73,160.7,19.26317022]
[1749684117587,13.68317022,160.75,160.7,19.26317022]
[1749684117892,32.0729,160.76,160.71,13.68317022]
[1749684117893,4.65684328,160.74,160.71,13.68317022]
[1749684118107,13.68317022,160.76,160.71,13.68317022]
[1749684118299,4.65646574,160.75,160.71,13.68317022]
[1749684118618,4.65648526,160.74,160.72,13.68317022]
[1749684118816,16.17090031,160.77,160.7,5.58]
[1749684118817,13.68317022,160.75,160.7,5.58]
[1749684119115,4.65662771,160.74,160.7,5.58]
[1749684119318,13.68317022,160.75,160.7,19.26317022]
[1749684119627,4.65666689,160.74,160.7,19.26317022]
[1749684119793,4.65660331,160.73,160.7,19.26317022]
[1749684119996,13.68317022,160.75,160.7,19.26317022]
[1749684120318,4.65660392,160.74,160.71,13.68317022]
[1749684120506,4.65660392,160.73,160.7,5.58]
[1749684120698,13.68317022,160.76,160.71,13.68317022]
[1749684120892,4.65667338,160.75,160.71,13.68317022]
[1749684121098,13.68317022,160.76,160.71,13.68317022]
[1749684121316,4.65667338,160.75,160.71,13.68317022]
[1749684121515,4.65667404,160.74,160.71,13.68317022]
[1749684121722,4.65667469,160.73,160.71,13.68317022]
[1749684121923,13.68317022,160.76,160.71,13.68317022]
[1749684122121,4.65667338,160.75,160.71,13.68317022]
[1749684122313,4.65667338,160.74,160.71,13.68317022]
[1749684122518,16.17090031,160.77,160.72,13.68317022]
[1749684122712,4.65643542,160.76,160.72,13.68317022]
[1749684122921,4.65643608,160.75,160.72,13.68317022]
[1749684123105,4.65643674,160.74,160.72,13.68317022]
[1749684123419,2.48773009,160.77,160.72,13.68317022]
[1749684123624,4.65641754,160.76,160.72,13.68317022]
[1749684123798,4.65641754,160.75,160.72,13.68317022]
[1749684124005,4.65622614,160.74,160.72,13.68317022]
[1749684124323,16.17090031,160.77,160.72,13.68317022]
[1749684124520,16.17090031,160.77,160.7,5.58]
[1749684124521,4.65624892,160.76,160.73,13.68317022]
[1749684124723,4.65624892,160.75,160.73,13.68317022]
[1749684124908,2.48773009,160.77,160.73,13.68317022]
[1749684125111,4.65596191,160.76,160.73,13.68317022]
[1749684125321,4.65596191,160.75,160.73,13.68317022]
[1749684125523,2.48773009,160.77,160.73,13.68317022]
[1749684125820,4.65600357,160.76,160.73,13.68317022]
[1749684126026,4.65600357,160.75,160.73,13.68317022]
[1749684126325,2.48773009,160.77,160.73,13.68317022]
[1749684126930,4.65600738,160.76,160.71,18.64964886]
[1749684127103,16.17090031,160.77,160.73,13.68317022]
[1749684127516,2.48773009,160.77,160.73,13.68317022]
[1749684127807,2.48773009,160.77,160.74,13.68317022]
[1749684128029,4.65565138,160.76,160.74,13.68317022]
[1749684128213,2.48773009,160.77,160.74,13.68317022]
[1749684128421,4.65726876,160.76,160.74,13.68317022]
[1749684128724,2.48773009,160.77,160.71,18.64964886]
[1749684128928,4.657317,160.76,160.73,13.68317022]
[1749684129122,16.17090031,160.77,160.73,13.68317022]
[1749684129803,4.65725351,160.76,160.71,18.64964886]
[1749684129998,16.17090031,160.77,160.73,13.68317022]
[1749684130203,4.65725349,160.76,160.73,13.68317022]
[1749684130534,16.17090031,160.77,160.73,13.68317022]
[1749684130830,4.65727924,160.76,160.73,13.68317022]
[1749684131038,16.17090031,160.77,160.71,18.64964886]
[1749684131328,4.65727217,160.76,160.71,18.64964886]
[1749684131545,2.48773009,160.77,160.73,13.68317022]
[1749684131748,4.65727086,160.76,160.73,13.68317022]
[1749684131949,16.17090031,160.77,160.73,13.68317022]
[1749684132117,4.65727086,160.76,160.73,13.68317022]
[1749684132322,16.17090031,160.77,160.73,13.68317022]
[1749684132756,4.65727086,160.76,160.73,13.68317022]
[1749684132934,16.17090031,160.77,160.73,13.68317022]
[1749684133126,4.65727086,160.76,160.73,13.68317022]
[1749684133445,16.17090031,160.77,160.73,13.68317022]
[1749684133829,4.65727086,160.76,160.73,13.68317022]
[1749684134018,16.17090031,160.77,160.73,13.68317022]
[1749684134217,4.65723904,160.76,160.73,13.68317022]
[1749684134415,16.17090031,160.77,160.73,13.68317022]
[1749684134644,2.48773009,160.77,160.73,13.68317022]
[1749684135046,2.48773009,160.77,160.74,5.58]
[1749684136024,2.48773009,160.77,160.74,19.26317022]
[1749684136357,2.48773009,160.77,160.74,5.58]
[1749684136534,2.48773009,160.77,160.76,13.68317022]
[1749684136930,2.48773009,160.77,160.74,5.58]
[1749684137131,2.48773009,160.77,160.75,13.68317022]
[1749684138550,2.48773009,160.77,160.76,13.68317022]
[1749684138945,2.48773009,160.77,160.74,5.58]
[1749684139142,2.48773009,160.77,160.75,13.68317022]
[1749684139947,2.48773009,160.77,160.74,5.58]
[1749684140441,2.48773009,160.77,160.74,19.26317022]
[1749684140754,2.48773009,160.77,160.74,7.0837]
[1749684140964,2.48773009,160.77,160.75,13.68317022]
[1749684141148,2.48773009,160.77,160.74,15.18687022]
[1749684141348,2.48773009,160.77,160.75,5.58]
[1749684142471,2.48773009,160.77,160.73,44.64964886]
[1749684142643,2.48773009,160.77,160.74,5.58]
[1749684143447,2.48773009,160.77,160.74,14.2903884]
[1749684143856,2.48773009,160.77,160.74,5.58]
[1749684144068,2.48773009,160.77,160.74,14.2903884]
[1749684145666,2.48773009,160.77,160.74,5.58]
[1749684145845,2.48773009,160.77,160.74,14.2903884]
[1749684146272,2.48773009,160.77,160.75,8.7103884]
[1749684146657,2.48773009,160.77,160.74,14.2903884]
[1749684147166,2.48773009,160.77,160.74,5.58]
[1749684147367,2.48773009,160.77,160.75,8.7103884]
[1749684147568,2.48773009,160.77,160.76,8.7103884]
[1749684148768,2.48773009,160.77,160.76,27.36003726]
[1749684148945,2.48773009,160.77,160.74,5.58]
[1749684149142,2.48773009,160.77,160.75,8.7103884]
[1749684149380,2.48773009,160.77,160.74,5.58]
[1749684149578,2.48773009,160.77,160.74,14.2903884]
[1749684150071,2.48773009,160.77,160.75,8.7103884]
[1749684150778,2.48773009,160.77,160.76,8.7103884]
[1749684154947,2.48773009,160.77,160.75,18.64964886]
[1749684155149,2.48773009,160.77,160.76,5.56]
[1749684155352,2.48773009,160.77,160.76,14.2703884]
[1749684158366,2.00364629,160.77,160.76,14.2703884]
[1749684159271,2.00364629,160.77,160.76,24.20964886]
[1749684159575,2.00364629,160.77,160.76,32.92003726]
[1749684160372,2.00364629,160.77,160.76,24.20964886]
[1749684160586,2.00364629,160.77,160.76,32.92003726]
[1749684161392,2.00364629,160.77,160.76,24.20964886]
[1749684161573,2.00364629,160.77,160.76,32.92003726]
[1749684161975,2.00364629,160.77,160.76,24.20964886]
[1749684162180,2.00364629,160.77,160.76,32.92003726]
[1749684163793,2.00364629,160.77,160.72,26.0]
[1749684163964,2.00364629,160.77,160.76,5.56]
[1749684164379,2.00364629,160.77,160.72,26.0]
[1749684164564,2.00364629,160.77,160.74,8.7103884]
[1749684165260,2.00364629,160.77,160.75,8.7103884]
[1749684169203,2.00364629,160.77,160.73,5.56]
[1749684169500,2.00364629,160.77,160.74,8.7103884]
[1749684175005,8.7103884,160.75,160.74,5.56]
[1749684175207,8.7103884,160.75,160.72,5.56]
[1749684175514,8.7103884,160.73,160.72,5.56]
[1749684175692,8.22387636,160.77,160.72,5.56]
[1749684176014,8.7103884,160.73,160.72,5.56]
[1749684176386,8.7103884,160.74,160.72,5.56]
[1749684177230,13.61922638,160.74,160.72,5.56]
[1749684179430,6.2793,160.74,160.64,3.05102842]
[1749684179732,13.61922638,160.69,160.65,24.20964886]
[1749684179934,1.5462,160.72,160.65,24.20964886]
[1749684179935,13.61922638,160.68,160.65,5.56]
[1749684181827,13.61922638,160.67,160.65,5.56]
[1749684184442,6.22243593,160.71,160.65,5.56]
[1749684184741,13.61922638,160.67,160.65,5.56]
[1749684188452,13.61922638,160.66,160.65,5.56]
[1749684189227,13.61922638,160.67,160.65,5.56]
[1749684190043,7.76844176,160.72,160.65,5.56]
[1749684190243,13.61922638,160.69,160.65,5.56]
[1749684190535,13.61922638,160.68,160.65,5.56]
[1749684190738,13.61922638,160.66,160.6,48.25389351]
[1749684191044,6.2321,160.67,160.63,5.56]
[1749684192248,13.61922638,160.64,160.63,5.56]